fUSD/lending_fUSD_20250311
["ID","MTS","AMOUNT","RATE_DAILY","PERIOD"]
[355948418,1741727457182,-500.0,9.536e-05,2]
[355948419,1741727457191,-500.0,9.536e-05,2]
[355948420,1741727457200,-500.0,9.536e-05,2]
[355948421,1741727457209,-500.0,9.536e-05,2]
[355948422,1741727457219,-521.4,9.536e-05,2]
[355948423,1741727457229,-10000.0,9.536e-05,2]
[355948424,1741727457238,-10000.0,9.536e-05,2]
[355948425,1741727457247,-500.0,9.536e-05,2]
[355948426,1741727457256,-908.46,9.536e-05,2]
[355948427,1741727457265,-10000.0,9.536e-05,2]
[355948428,1741727457274,-10000.0,9.536e-05,2]
[355948429,1741727457284,-634.0,9.536e-05,2]
[355948430,1741727457293,-201.325956,9.536e-05,2]
[355948431,1741727457302,-500.0,9.536e-05,2]
[355948432,1741727457311,-500.0,9.536e-05,2]
[355948433,1741727457321,-1087.21,9.536e-05,2]
[355948434,1741727457330,-500.0,9.536e-05,2]
[355948435,1741727457339,-500.0,9.536e-05,2]
[355948436,1741727457348,-500.0,9.536e-05,2]
[355948437,1741727457357,-545.22,9.536e-05,2]
[355948438,1741727457366,-533.85,9.536e-05,2]
[355948439,1741727457375,-942.77,9.536e-05,2]
[355948440,1741727457385,-500.0,9.536e-05,2]
[355948441,1741727457394,-500.0,9.536e-05,2]
[355948442,1741727457404,-500.0,9.536e-05,2]
[355948443,1741727457413,-151.0,9.536e-05,2]
[355948444,1741727457422,-151.0,9.536e-05,2]
[355948445,1741727457431,-500.0,9.536e-05,2]
[355948446,1741727457441,-500.0,9.536e-05,2]
[355948447,1741727457452,-500.0,9.536e-05,2]
[355948448,1741727457461,-961.27,9.536e-05,2]
[355948449,1741727457470,-155.904926,9.536e-05,2]
[355948450,1741727457478,-155.904926,9.536e-05,2]
[355948451,1741727457489,-500.0,9.536e-05,2]
[355948452,1741727457498,-155.904926,9.536e-05,2]
[355948453,1741727457507,-155.904926,9.536e-05,2]
[355948454,1741727457516,-500.0,9.536e-05,2]
[355948455,1741727457527,-500.0,9.536e-05,2]
[355948456,1741727457536,-1326.35,9.536e-05,2]
[355948457,1741727457545,-151.0,9.536e-05,2]
[355948458,1741727457554,-500.2,9.536e-05,2]
[355948459,1741727457563,-151.0,9.536e-05,2]
[355948460,1741727457572,-241.997704,9.536e-05,2]
[355948461,1741727457582,-241.997704,9.536e-05,2]
[355948462,1741727457590,-241.997704,9.536e-05,2]
[355948463,1741727457599,-241.997704,9.536e-05,2]
[355948464,1741727457609,-500.0,9.536e-05,2]
[355948465,1741727457619,-1433.35,9.536e-05,2]
[355948466,1741727457627,-558.47,9.536e-05,2]
[355948467,1741727457637,-500.0,9.536e-05,2]
[355948468,1741727457646,-823.125907,9.536e-05,2]
[355948469,1741727457655,-500.0,9.536e-05,2]
[355948470,1741727457663,-1257.27,9.536e-05,2]
[355948471,1741727457672,-500.0,9.536e-05,2]
[355948472,1741727457681,-823.125907,9.536e-05,2]
[355948473,1741727457690,-500.0,9.536e-05,2]
[355948474,1741727457699,-500.0,9.536e-05,2]
[355948475,1741727457708,-1275.06,9.536e-05,2]
[355948476,1741727457717,-500.0,9.536e-05,2]
[355948477,1741727457726,-500.0,9.536e-05,2]
[355948478,1741727457735,-1378.8,9.536e-05,2]
[355948479,1741727457745,-500.0,9.536e-05,2]
[355948480,1741727457754,-426.726289,9.536e-05,2]
[355948481,1741727457763,-426.726289,9.536e-05,2]
[355948482,1741727457772,-151.0,9.536e-05,2]
[355948483,1741727457781,-151.0,9.536e-05,2]
[355948484,1741727457790,-151.0,9.536e-05,2]
[355948485,1741727457799,-151.0,9.536e-05,2]
[355948486,1741727457812,-426.726289,9.536e-05,2]
[355948487,1741727457821,-426.726289,9.536e-05,2]
[355948488,1741727457830,-500.0,9.536e-05,2]
[355948489,1741727457839,-500.0,9.536e-05,2]
[355948490,1741727457848,-500.0,9.536e-05,2]
[355948491,1741727457857,-1252.37,9.536e-05,2]
[355948492,1741727457866,-1340.78,9.536e-05,2]
[355948493,1741727457875,-500.0,9.536e-05,2]
[355948494,1741727457884,-1578.72,9.536e-05,2]
[355948495,1741727457895,-1222.61,9.536e-05,2]
[355948496,1741727457904,-500.0,9.536e-05,2]
[355948497,1741727457913,-383.422052,9.536e-05,2]
[355948498,1741727457922,-383.422052,9.536e-05,2]
[355948499,1741727457931,-500.0,9.536e-05,2]
[355948500,1741727457940,-383.422052,9.536e-05,2]
[355948501,1741727457949,-383.422052,9.536e-05,2]
[355948502,1741727457958,-1070.52,9.536e-05,2]
[355948503,1741727457967,-151.0,9.536e-05,2]
[355948504,1741727457977,-151.0,9.536e-05,2]
[355948505,1741727457986,-864.67,9.536e-05,2]
[355948506,1741727457996,-1412.91,9.536e-05,2]
[355948507,1741727458004,-247.4217,9.536e-05,2]
[355948508,1741727458014,-247.4217,9.536e-05,2]
[355948509,1741727458023,-2867.572547,9.536e-05,2]
[355948510,1741727458032,-346.752883,9.536e-05,2]
[355948511,1741727458042,-346.752883,9.536e-05,2]
[355948512,1741727458051,-247.4217,9.536e-05,2]
[355948513,1741727458061,-247.4217,9.536e-05,2]
[355948514,1741727458070,-2867.572547,9.536e-05,2]
[355948515,1741727458080,-346.752883,9.536e-05,2]
[355948516,1741727458089,-346.752883,9.536e-05,2]
[355948517,1741727458099,-500.0,9.536e-05,2]
[355948518,1741727458109,-1065.96,9.536e-05,2]
[355948519,1741727458118,-1058.86,9.536e-05,2]
[355948520,1741727458128,-961.98,9.536e-05,2]
[355948521,1741727458137,-151.0,9.536e-05,2]
[355948522,1741727458147,-500.0,9.536e-05,2]
[355948523,1741727458157,-151.0,9.536e-05,2]
[355948524,1741727458167,-151.0,9.536e-05,2]
[355948525,1741727458177,-151.0,9.536e-05,2]
[355948526,1741727458187,-191.56516,9.536e-05,2]
[355948527,1741727458196,-191.56516,9.536e-05,2]
[355948528,1741727458206,-500.0,9.536e-05,2]
[355948529,1741727458216,-500.0,9.536e-05,2]
[355948530,1741727458225,-691.01,9.536e-05,2]
[355948531,1741727458235,-151.0,9.536e-05,2]
[355948532,1741727458244,-151.0,9.536e-05,2]
[355948533,1741727458254,-151.0,9.536e-05,2]
[355948534,1741727458263,-1285.18,9.536e-05,2]
[355948535,1741727458273,-500.0,9.536e-05,2]
[355948536,1741727458283,-500.0,9.536e-05,2]
[355948537,1741727458292,-500.0,9.536e-05,2]
[355948538,1741727458302,-448.813592,9.536e-05,2]
[355948539,1741727458312,-977.91,9.536e-05,2]
[355948540,1741727458322,-500.0,9.536e-05,2]
[355948541,1741727458331,-448.813592,9.536e-05,2]
[355948542,1741727458341,-834.88,9.536e-05,2]
[355948543,1741727458351,-151.0,9.536e-05,2]
[355948544,1741727458360,-1347.36,9.536e-05,2]
[355948545,1741727458370,-831.3,9.536e-05,2]
[355948546,1741727458379,-1417.91,9.536e-05,2]
[355948547,1741727458389,-630.73,9.536e-05,2]
[355948548,1741727458398,-205.001513,9.536e-05,2]
[355948549,1741727458408,-205.001513,9.536e-05,2]
[355948550,1741727458417,-500.0,9.536e-05,2]
[355948551,1741727458427,-500.0,9.536e-05,2]
[355948552,1741727458436,-694.82,9.536e-05,2]
[355948553,1741727458446,-1136.83,9.536e-05,2]
[355948554,1741727458460,-894.53,9.536e-05,2]
[355948555,1741727458470,-151.0,9.536e-05,2]
[355948556,1741727458479,-500.0,9.536e-05,2]
[355948557,1741727458491,-500.0,9.536e-05,2]
[355948558,1741727458500,-575.79,9.536e-05,2]
[355948559,1741727458509,-677.24,9.536e-05,2]
[355948560,1741727458519,-844.14,9.536e-05,2]
[355948561,1741727458530,-773.39,9.536e-05,2]
[355948562,1741727458539,-179.876634,9.536e-05,2]
[355948563,1741727458549,-1336.51,9.536e-05,2]
[355948564,1741727458558,-500.0,9.536e-05,2]
[355948565,1741727458568,-1182.85,9.536e-05,2]
[355948566,1741727458578,-500.0,9.536e-05,2]
[355948567,1741727458588,-151.0,9.536e-05,2]
[355948568,1741727458598,-151.0,9.536e-05,2]
[355948569,1741727458607,-151.0,9.536e-05,2]
[355948570,1741727458617,-864.19,9.536e-05,2]
[355948571,1741727458626,-500.0,9.536e-05,2]
[355948572,1741727458635,-199.642399,9.536e-05,2]
[355948573,1741727458645,-500.0,9.536e-05,2]
[355948574,1741727458654,-299.427458,9.537e-05,2]
[355948575,1741727458664,-151.0,9.537e-05,2]
[355948576,1741727458673,-151.0,9.537e-05,2]
[355948577,1741727458682,-151.0,9.537e-05,2]
[355948578,1741727458691,-151.0,9.537e-05,2]
[355948579,1741727458700,-931.52,9.537e-05,2]
[355948580,1741727458709,-211.649997,9.537e-05,2]
[355948581,1741727458719,-4679.14,9.537e-05,2]
[355948582,1741727458728,-211.649997,9.537e-05,2]
[355948583,1741727458738,-849.97,9.537e-05,2]
[355948584,1741727458747,-247.713088,9.537e-05,2]
[355948585,1741727458756,-247.713088,9.537e-05,2]
[355948586,1741727458765,-500.0,9.537e-05,2]
[355948587,1741727458775,-1000.78,9.537e-05,2]
[355948588,1741727458784,-151.0,9.537e-05,2]
[355948589,1741727458794,-500.0,9.537e-05,2]
[355948590,1741727458803,-151.0,9.537e-05,2]
[355948591,1741727458813,-1215.69,9.537e-05,2]
[355948592,1741727458822,-1315.39,9.537e-05,2]
[355948593,1741727458832,-1054.16,9.537e-05,2]
[355948594,1741727458841,-157.966654,9.537e-05,2]
[355948595,1741727458850,-157.966654,9.537e-05,2]
[355948596,1741727458859,-151.0,9.537e-05,2]
[355948597,1741727458869,-151.0,9.537e-05,2]
[355948598,1741727458878,-500.0,9.537e-05,2]
[355948599,1741727458888,-1174.69,9.537e-05,2]
[355948600,1741727458897,-151.0,9.537e-05,2]
[355948601,1741727458907,-151.0,9.537e-05,2]
[355948602,1741727458916,-151.0,9.537e-05,2]
[355948603,1741727458925,-151.0,9.537e-05,2]
[355948604,1741727458934,-151.0,9.537e-05,2]
[355948605,1741727458944,-151.0,9.537e-05,2]
[355948606,1741727458953,-151.0,9.537e-05,2]
[355948607,1741727458963,-151.0,9.537e-05,2]
[355948608,1741727458974,-193.606039,9.537e-05,2]
[355948609,1741727458983,-623.608064,9.537e-05,2]
[355948610,1741727458993,-623.608064,9.537e-05,2]
[355948611,1741727459003,-151.0,9.537e-05,2]
[355948612,1741727459013,-151.0,9.537e-05,2]
[355948613,1741727459022,-255.638755,9.537e-05,2]
[355948614,1741727459032,-151.0,9.537e-05,2]
[355948615,1741727459042,-357.4133,9.537e-05,2]
[355948616,1741727459051,-300.362594,9.537e-05,2]
[355948617,1741727459061,-357.4133,9.537e-05,2]
[355948618,1741727459070,-296.348042,9.537e-05,2]
[355948619,1741727459080,-151.0,9.537e-05,2]
[355948620,1741727459089,-151.0,9.537e-05,2]
[355948621,1741727459099,-151.0,9.537e-05,2]
[355948622,1741727459109,-151.0,9.537e-05,2]
[355948623,1741727459118,-539.96,9.537e-05,2]
[355948624,1741727459128,-566.88,9.537e-05,2]
[355948625,1741727459137,-151.0,9.537e-05,2]
[355948626,1741727459146,-500.0,9.537e-05,2]
[355948627,1741727459156,-1262.85,9.537e-05,2]
[355948628,1741727459166,-500.0,9.537e-05,2]
[355948629,1741727459175,-151.0,9.537e-05,2]
[355948630,1741727459184,-500.0,9.537e-05,2]
[355948631,1741727459195,-263.152545,9.537e-05,2]
[355948632,1741727459204,-263.152545,9.537e-05,2]
[355948633,1741727459214,-500.0,9.537e-05,2]
[355948634,1741727459223,-151.0,9.537e-05,2]
[355948635,1741727459232,-533.46,9.537e-05,2]
[355948636,1741727459242,-151.0,9.537e-05,2]
[355948637,1741727459251,-500.0,9.537e-05,2]
[355948638,1741727459261,-151.0,9.537e-05,2]
[355948639,1741727459271,-546.4,9.537e-05,2]
[355948640,1741727459280,-600.24,9.537e-05,2]
[355948641,1741727459290,-425.722849,9.537e-05,2]
[355948642,1741727459299,-646.04,9.537e-05,2]
[355948643,1741727459310,-425.722849,9.537e-05,2]
[355948644,1741727459319,-211.366234,9.537e-05,2]
[355948645,1741727459329,-211.366234,9.537e-05,2]
[355948646,1741727459338,-500.0,9.537e-05,2]
[355948647,1741727459347,-811.84,9.537e-05,2]
[355948648,1741727459357,-500.0,9.537e-05,2]
[355948649,1741727459366,-159.863054,9.537e-05,2]
[355948650,1741727459376,-243.14769799,9.537e-05,2]
[355948651,1741727459385,-206.3128,9.537e-05,2]
[355948652,1741727459395,-206.3128,9.537e-05,2]
[355948653,1741727459404,-500.0,9.537e-05,2]
[355948654,1741727459414,-151.0,9.537e-05,2]
[355948655,1741727459423,-151.0,9.537e-05,2]
[355948656,1741727459433,-277.829174,9.537e-05,2]
[355948657,1741727459443,-277.829174,9.537e-05,2]
[355948658,1741727459458,-1614.82,9.537e-05,2]
[355948659,1741727459468,-151.0,9.537e-05,2]
[355948660,1741727459478,-527.68,9.537e-05,2]
[355948661,1741727459487,-500.0,9.537e-05,2]
[355948662,1741727459498,-500.0,9.537e-05,2]
[355948663,1741727459508,-1237.371674,9.537e-05,2]
[355948664,1741727459517,-981.96,9.537e-05,2]
[355948665,1741727459529,-1237.371674,9.537e-05,2]
[355948666,1741727459538,-520.48,9.537e-05,2]
[355948667,1741727459548,-500.0,9.537e-05,2]
[355948668,1741727459558,-998.14,9.537e-05,2]
[355948669,1741727459568,-2180.841914,9.537e-05,2]
[355948670,1741727459577,-151.0,9.537e-05,2]
[355948671,1741727459587,-151.0,9.537e-05,2]
[355948672,1741727459597,-2180.841914,9.537e-05,2]
[355948673,1741727459606,-500.0,9.537e-05,2]
[355948674,1741727459617,-1242.47,9.537e-05,2]
[355948675,1741727459627,-500.0,9.537e-05,2]
[355948676,1741727459636,-500.0,9.537e-05,2]
[355948677,1741727459646,-500.0,9.537e-05,2]
[355948678,1741727459656,-543.557461,9.537e-05,2]
[355948679,1741727459666,-543.557461,9.537e-05,2]
[355948680,1741727459676,-730.084523,9.537e-05,2]
[355948681,1741727459686,-874.74,9.537e-05,2]
[355948682,1741727459695,-730.084523,9.537e-05,2]
[355948683,1741727459705,-574.44592,9.537e-05,2]
[355948684,1741727459715,-574.44592,9.537e-05,2]
[355948685,1741727459725,-1360.49,9.537e-05,2]
[355948686,1741727459734,-534.51,9.537e-05,2]
[355948687,1741727459743,-318.428282,9.537e-05,2]
[355948688,1741727459752,-318.428282,9.537e-05,2]
[355948689,1741727459762,-588.18360911,9.537e-05,2]
[355948690,1741727459771,-500.0,9.537e-05,2]
[355948691,1741727459781,-500.0,9.537e-05,2]
[355948692,1741727459790,-688.05,9.537e-05,2]
[355948693,1741727459800,-567.64,9.537e-05,2]
[355948694,1741727459811,-1318.02,9.537e-05,2]
[355948695,1741727459821,-500.0,9.537e-05,2]
[355948696,1741727459831,-500.0,9.537e-05,2]
[355948697,1741727459841,-682.03,9.537e-05,2]
[355948698,1741727459853,-823.125907,9.537e-05,2]
[355948699,1741727459863,-823.125907,9.537e-05,2]
[355948700,1741727459874,-2867.572547,9.537e-05,2]
[355948701,1741727459885,-346.752883,9.537e-05,2]
[355948702,1741727459896,-2867.572547,9.537e-05,2]
[355948703,1741727459907,-346.752883,9.537e-05,2]
[355948704,1741727459918,-151.0,9.537e-05,2]
[355948705,1741727459929,-151.0,9.537e-05,2]
[355948706,1741727459940,-151.0,9.537e-05,2]
[355948707,1741727459951,-191.56516,9.537e-05,2]
[355948708,1741727459962,-191.56516,9.537e-05,2]
[355948709,1741727459972,-151.0,9.537e-05,2]
[355948710,1741727459983,-151.0,9.537e-05,2]
[355948711,1741727459993,-448.813592,9.537e-05,2]
[355948712,1741727460003,-448.813592,9.537e-05,2]
[355948713,1741727460013,-151.0,9.537e-05,2]
[355948714,1741727460024,-205.001513,9.537e-05,2]
[355948715,1741727460034,-205.001513,9.537e-05,2]
[355948716,1741727460044,-151.0,9.537e-05,2]
[355948717,1741727460054,-156.48,9.537e-05,2]
[355948718,1741727460072,-151.0,9.537e-05,2]
[355948719,1741727460082,-151.0,9.537e-05,2]
[355948720,1741727460092,-151.0,9.538e-05,2]
[355948721,1741727460102,-151.0,9.538e-05,2]
[355948722,1741727460111,-151.0,9.538e-05,2]
[355948723,1741727460121,-151.0,9.538e-05,2]
[355948724,1741727460131,-151.0,9.538e-05,2]
[355948725,1741727460141,-151.0,9.538e-05,2]
[355948726,1741727460151,-151.0,9.538e-05,2]
[355948727,1741727460162,-454.328299,9.538e-05,2]
[355948728,1741727460173,-454.328299,9.538e-05,2]
[355948729,1741727460184,-151.0,9.538e-05,2]
[355948730,1741727460195,-152.705494,9.538e-05,2]
[355948731,1741727460206,-151.0,9.538e-05,2]
[355948732,1741727460216,-151.0,9.538e-05,2]
[355948733,1741727460226,-260.232165,9.538e-05,2]
[355948734,1741727460237,-260.232165,9.538e-05,2]
[355948735,1741727460247,-269359.80021594,9.539e-05,2]
[355948736,1741727460257,-151.0,9.539e-05,2]
[355948737,1741727460267,-151.0,9.539e-05,2]
[355948738,1741727460277,-151.0,9.539e-05,2]
[355948739,1741727460287,-151.0,9.539e-05,2]
[355948740,1741727460502,-211.649997,9.539e-05,2]
[355948741,1741727460512,-211.649997,9.539e-05,2]
[355948742,1741727460522,-247.713088,9.539e-05,2]
[355948743,1741727460531,-247.713088,9.539e-05,2]
[355948744,1741727460540,-151.0,9.539e-05,2]
[355948745,1741727460549,-151.0,9.539e-05,2]
[355948746,1741727460559,-157.966654,9.539e-05,2]
[355948747,1741727460569,-157.966654,9.539e-05,2]
[355948748,1741727460578,-151.0,9.539e-05,2]
[355948749,1741727460587,-151.0,9.539e-05,2]
[355948750,1741727460597,-151.0,9.539e-05,2]
[355948751,1741727460606,-151.0,9.539e-05,2]
[355948752,1741727460616,-151.0,9.539e-05,2]
[355948753,1741727460626,-151.0,9.539e-05,2]
[355948754,1741727460640,-151.0,9.539e-05,2]
[355948755,1741727460650,-151.0,9.539e-05,2]
[355948756,1741727460660,-623.608064,9.539e-05,2]
[355948757,1741727460670,-623.608064,9.539e-05,2]
[355948758,1741727460679,-151.0,9.539e-05,2]
[355948759,1741727460689,-151.0,9.539e-05,2]
[355948760,1741727460699,-151.0,9.539e-05,2]
[355948761,1741727460708,-357.4133,9.539e-05,2]
[355948762,1741727460717,-357.4133,9.539e-05,2]
[355948763,1741727460727,-151.0,9.539e-05,2]
[355948764,1741727460736,-151.0,9.539e-05,2]
[355948765,1741727460746,-151.0,9.539e-05,2]
[355948766,1741727460755,-151.0,9.539e-05,2]
[355948767,1741727460765,-263.152545,9.539e-05,2]
[355948768,1741727460775,-263.152545,9.539e-05,2]
[355948769,1741727460784,-151.0,9.539e-05,2]
[355948770,1741727460793,-151.0,9.539e-05,2]
[355948771,1741727460803,-151.0,9.539e-05,2]
[355948772,1741727460814,-208.513293,9.539e-05,2]
[355948773,1741727460823,-425.722849,9.539e-05,2]
[355948774,1741727460833,-425.722849,9.539e-05,2]
[355948775,1741727460842,-211.366234,9.539e-05,2]
[355948776,1741727460852,-151.0,9.539e-05,2]
[355948777,1741727460861,-211.366234,9.539e-05,2]
[355948778,1741727460871,-454.328299,9.539e-05,2]
[355948779,1741727460880,-454.328299,9.539e-05,2]
[355948780,1741727460890,-151.0,9.539e-05,2]
[355948781,1741727460899,-151.0,9.539e-05,2]
[355948782,1741727460909,-206.3128,9.539e-05,2]
[355948783,1741727460919,-206.3128,9.539e-05,2]
[355948784,1741727460929,-220.416664,9.539e-05,2]
[355948785,1741727460939,-151.0,9.539e-05,2]
[355948786,1741727460949,-151.0,9.539e-05,2]
[355948787,1741727460959,-277.829174,9.539e-05,2]
[355948788,1741727460968,-277.829174,9.539e-05,2]
[355948789,1741727460978,-151.0,9.539e-05,2]
[355948790,1741727460987,-260.232165,9.539e-05,2]
[355948791,1741727460997,-260.232165,9.539e-05,2]
[355948792,1741727461007,-1237.371674,9.539e-05,2]
[355948793,1741727461016,-1237.371674,9.539e-05,2]
[355948794,1741727461025,-2180.841914,9.539e-05,2]
[355948795,1741727461035,-151.0,9.539e-05,2]
[355948796,1741727461044,-151.0,9.539e-05,2]
[355948797,1741727461054,-2180.841914,9.539e-05,2]
[355948798,1741727461064,-303.56343,9.539e-05,2]
[355948799,1741727461074,-303.56343,9.539e-05,2]
[355948800,1741727461083,-543.557461,9.539e-05,2]
[355948801,1741727461093,-730.084523,9.539e-05,2]
[355948802,1741727461103,-543.557461,9.539e-05,2]
[355948803,1741727461112,-730.084523,9.539e-05,2]
[355948804,1741727461122,-574.44592,9.539e-05,2]
[355948805,1741727461132,-574.44592,9.539e-05,2]
[355948806,1741727461142,-206.81441,9.539e-05,2]
[355948807,1741727461152,-206.81441,9.539e-05,2]
[355948808,1741727461161,-318.428282,9.539e-05,2]
[355948809,1741727461171,-151.0,9.539e-05,2]
[355948810,1741727461180,-318.428282,9.539e-05,2]
[355948811,1741727461190,-177.186002,9.539e-05,2]
[355948812,1741727461200,-177.186002,9.539e-05,2]
[355948813,1741727461211,-10000.0,9.539e-05,2]
[355948814,1741727461221,-10000.0,9.539e-05,2]
[355948815,1741727461231,-151.0,9.539e-05,2]
[355948816,1741727461240,-155.904926,9.539e-05,2]
[355948817,1741727461249,-155.904926,9.539e-05,2]
[355948818,1741727461258,-151.0,9.539e-05,2]
[355948819,1741727461268,-241.997704,9.539e-05,2]
[355948820,1741727461277,-241.997704,9.539e-05,2]
[355948821,1741727461287,-823.125907,9.539e-05,2]
[355948822,1741727461297,-823.125907,9.539e-05,2]
[355948823,1741727461306,-426.726289,9.539e-05,2]
[355948824,1741727461316,-151.0,9.539e-05,2]
[355948825,1741727461326,-151.0,9.539e-05,2]
[355948826,1741727461336,-426.726289,9.539e-05,2]
[355948827,1741727461345,-383.422052,9.539e-05,2]
[355948828,1741727461355,-383.422052,9.539e-05,2]
[355948829,1741727461365,-151.0,9.539e-05,2]
[355948830,1741727461375,-247.4217,9.539e-05,2]
[355948831,1741727461385,-2867.572547,9.539e-05,2]
[355948832,1741727461395,-346.752883,9.539e-05,2]
[355948833,1741727461406,-247.4217,9.539e-05,2]
[355948834,1741727461415,-2867.572547,9.539e-05,2]
[355948835,1741727461425,-346.752883,9.539e-05,2]
[355948836,1741727461436,-151.0,9.539e-05,2]
[355948837,1741727461446,-151.0,9.539e-05,2]
[355948838,1741727461459,-151.945352,9.539e-05,2]
[355948839,1741727461468,-191.56516,9.539e-05,2]
[355948840,1741727461478,-191.56516,9.539e-05,2]
[355948841,1741727461488,-151.0,9.539e-05,2]
[355948842,1741727461499,-151.0,9.539e-05,2]
[355948843,1741727461508,-448.813592,9.539e-05,2]
[355948844,1741727461517,-448.813592,9.539e-05,2]
[355948845,1741727461529,-151.0,9.539e-05,2]
[355948846,1741727461538,-205.001513,9.539e-05,2]
[355948847,1741727461548,-205.001513,9.539e-05,2]
[355948848,1741727461559,-151.0,9.539e-05,2]
[355948849,1741727461568,-151.0,9.539e-05,2]
[355948850,1741727461578,-151.0,9.539e-05,2]
[355948851,1741727461588,-150.0,9.54e-05,2]
[355948852,1741727461598,-152.0,9.54e-05,2]
[355948853,1741727461607,-151.0,9.541e-05,2]
[355948854,1741727461617,-153.421814,9.541e-05,2]
[355948855,1741727461627,-276.044803,9.541e-05,2]
[355948856,1741727461637,-151.0,9.541e-05,2]
[355948857,1741727461646,-211.649997,9.541e-05,2]
[355948858,1741727461656,-211.649997,9.541e-05,2]
[355948859,1741727461666,-247.713088,9.541e-05,2]
[355948860,1741727461675,-247.713088,9.541e-05,2]
[355948861,1741727461685,-151.0,9.541e-05,2]
[355948862,1741727461695,-151.0,9.541e-05,2]
[355948863,1741727461704,-157.966654,9.541e-05,2]
[355948864,1741727461714,-157.966654,9.541e-05,2]
[355948865,1741727461723,-212.449597,9.541e-05,2]
[355948866,1741727461733,-231.557471,9.541e-05,2]
[355948867,1741727461742,-150.0,9.562e-05,7]
[355948868,1741727461752,-1268.89,9.589e-05,2]
[355948869,1741727461762,-1268.89,9.589e-05,2]
[355948870,1741727461771,-433.78047151,9.599e-05,2]
[355948871,1741727461781,-1000.0,9.6e-05,2]
[355948872,1741727461790,-1700.0,9.6e-05,3]
[355948873,1741727461800,-267.0,9.62e-05,2]
[355948874,1741727461810,-26559.59,9.67e-05,2]
[355948875,1741727461819,-8778.42,9.67e-05,2]
[355948876,1741727461829,-558.15470924,9.683e-05,2]
[355948877,1741727461838,-1661.0,9.7e-05,2]
[355948878,1741727461848,-2100.0,9.7e-05,3]
[355948879,1741727461857,-387.68634838,9.7e-05,2]
[355948880,1741727461866,-500.0,9.747e-05,2]
[355948881,1741727461875,-500.0,9.747e-05,2]
[355948882,1741727461884,-789.31,9.747e-05,2]
[355948883,1741727461894,-2184.85,9.747e-05,2]
[355948884,1741727461903,-2019.43,9.747e-05,2]
[355948885,1741727461912,-979.85,9.747e-05,2]
[355948886,1741727461922,-1194.86,9.747e-05,2]
[355948887,1741727461931,-1149.75,9.747e-05,2]
[355948888,1741727461940,-151.0,9.747e-05,2]
[355948889,1741727461949,-584.69,9.747e-05,2]
[355948890,1741727461958,-220.147625,9.747e-05,2]
[355948891,1741727461968,-500.0,9.747e-05,2]
[355948892,1741727461977,-500.0,9.747e-05,2]
[355948893,1741727461986,-795.68,9.747e-05,2]
[355948894,1741727461996,-1886.95,9.747e-05,2]
[355948895,1741727462005,-151.0,9.747e-05,2]
[355948896,1741727462015,-151.0,9.747e-05,2]
[355948897,1741727462025,-623.608064,9.747e-05,2]
[355948898,1741727462034,-623.608064,9.747e-05,2]
[355948899,1741727462044,-151.0,9.747e-05,2]
[355948900,1741727462053,-179.676035,9.747e-05,2]
[355948901,1741727462063,-151.0,9.747e-05,2]
[355948902,1741727462073,-357.4133,9.747e-05,2]
[355948903,1741727462083,-357.4133,9.747e-05,2]
[355948904,1741727462092,-4968.0,9.781e-05,2]
[355948905,1741727462102,-1007.03863593,9.8e-05,3]
[355948906,1741727462112,-228.103281,9.8e-05,2]
[355948907,1741727462122,-151.0,9.8e-05,2]
[355948908,1741727462132,-165.928807,9.8e-05,2]
[355948909,1741727462143,-151.0,9.8e-05,2]
[355948910,1741727462152,-454.328299,9.8e-05,2]
[355948911,1741727462161,-454.328299,9.8e-05,2]
[355948912,1741727462171,-151.0,9.8e-05,2]
[355948913,1741727462181,-151.0,9.8e-05,2]
[355948914,1741727462190,-151.0,9.8e-05,2]
[355948915,1741727462200,-151.0,9.8e-05,2]
[355948916,1741727462210,-277.829174,9.8e-05,2]
[355948917,1741727462219,-277.829174,9.8e-05,2]